bitfinex/quotes_BTCUSD_20251116
["timestamp","ask_amount","ask_price","bid_price","bid_amount"]
[1763256981959,0.00113565,95290.0,95289.0,0.02286]
[1763256982173,0.00113565,95290.0,95289.0,0.19930808]
[1763256982586,0.00113565,95290.0,95289.0,0.17644808]
[1763256983127,0.00113565,95290.0,95289.0,0.08756895]
[1763256983329,0.20989371,95287.0,95285.0,0.01226]
[1763256983547,0.20988781,95289.0,95285.0,0.01226]
[1763256983782,0.20989292,95287.0,95285.0,0.01226]
[1763256984224,0.20989114,95288.0,95285.0,0.03512]
[1763256984426,0.20989114,95288.0,95286.0,0.06648339]
[1763256984782,0.20989319,95287.0,95286.0,0.06648339]
[1763256984978,0.20989319,95287.0,95285.0,0.03512]
[1763256985147,0.21189319,95287.0,95285.0,0.03512]
[1763256985369,0.20989319,95287.0,95285.0,0.03512]
[1763256985975,0.20989319,95287.0,95285.0,0.01226]
[1763256987372,0.21189418,95287.0,95285.0,0.01226]
[1763256987588,0.002,95287.0,95286.0,0.02221665]
[1763256987757,0.20989442,95286.0,95285.0,0.01226]
[1763256988603,0.20989248,95288.0,95285.0,0.01226]
[1763256988604,0.20989113,95288.0,95285.0,0.01226]
[1763256988765,0.21002271,95290.0,95286.0,0.02286]
[1763256988969,0.20989222,95287.0,95286.0,0.02286]
[1763256989178,0.20989222,95287.0,95286.0,0.06835314]
[1763256989569,0.21002271,95290.0,95263.0,0.02286]
[1763256989570,0.20989662,95285.0,95263.0,0.02286]
[1763256989772,0.00013565,95290.0,95272.0,0.01226]
[1763256989773,0.20992106,95274.0,95272.0,0.01226]
[1763256989972,0.33540711,95290.0,95260.0,0.20995073]
[1763256989973,0.20993628,95267.0,95260.0,0.20995073]
[1763256990177,0.2099657,95254.0,95252.0,0.01226]
[1763256990405,0.2099657,95254.0,95238.0,0.01226]
[1763256990406,0.20996934,95252.0,95242.0,0.01226]
[1763256990666,0.20996828,95253.0,95242.0,0.01226]
[1763256990870,0.20996828,95253.0,95247.0,0.2099798]
[1763256991457,0.20996828,95253.0,95246.0,0.20998211]
[1763256991666,0.20996828,95253.0,95251.0,0.00124738]
[1763256991870,0.20996828,95253.0,95251.0,0.00024738]
[1763256992789,0.20996828,95253.0,95251.0,0.00124738]
[1763256993181,0.20996688,95254.0,95251.0,0.00124738]
[1763256993381,0.20996688,95254.0,95251.0,0.21221808]
[1763256993894,0.20996751,95253.0,95251.0,0.00224738]
[1763256994087,0.20996751,95253.0,95251.0,0.00024738]
[1763256994313,0.20996751,95253.0,95251.0,0.00124738]
[1763256994796,0.20996856,95253.0,95251.0,0.00124738]
[1763256995017,0.20996856,95253.0,95251.0,0.00024738]
[1763256995243,0.20996594,95254.0,95251.0,0.06828465]
[1763256995449,0.20996594,95254.0,95251.0,0.04555465]
[1763256995903,0.20996714,95253.0,95252.0,0.01178]
[1763256997571,0.20996714,95253.0,95252.0,0.01278]
[1763256998665,0.20996714,95253.0,95252.0,0.01378]
[1763257000422,0.20996714,95253.0,95252.0,0.002]
[1763257002575,0.323,95258.0,95252.0,0.02440025]
[1763257002774,0.323,95258.0,95254.0,0.20996296]
[1763257003094,0.323,95258.0,95255.0,0.20996054]
[1763257003251,0.323,95258.0,95253.0,0.02373]
[1763257003452,0.323,95258.0,95252.0,0.001]
[1763257003453,0.20996714,95253.0,95252.0,0.001]
[1763257003659,0.20996714,95253.0,95252.0,0.002]
[1763257003853,0.54364191,95253.0,95252.0,0.001]
[1763257004223,0.323,95252.0,95251.0,0.00024738]
[1763257005502,0.323,95252.0,95251.0,0.00124738]
[1763257005906,0.323,95252.0,95251.0,0.00024738]
[1763257009810,0.53296934,95252.0,95251.0,0.00024738]
[1763257010498,0.323,95252.0,95251.0,0.02127059]
[1763257010712,0.20996864,95253.0,95251.0,0.00024738]
[1763257010925,0.53296934,95252.0,95251.0,0.00024738]
[1763257011781,0.53296934,95252.0,95251.0,0.00124738]
[1763257011998,0.53296934,95252.0,95251.0,0.00224738]
[1763257012217,0.53296934,95252.0,95251.0,0.00124738]
[1763257012433,0.53296934,95252.0,95251.0,0.00024738]
[1763257012646,0.56451848,95252.0,95251.0,0.00124738]
[1763257012886,0.56451848,95252.0,95251.0,0.00024738]
[1763257015283,0.58396512,95252.0,95251.0,0.00024738]
[1763257017378,0.58398138,95252.0,95251.0,0.00024738]
[1763257021628,0.0194629,95252.0,95251.0,0.00024738]
[1763257021835,0.55243224,95252.0,95251.0,0.00024738]
[1763257024981,0.55243224,95252.0,95251.0,0.00124738]
[1763257024982,0.3424629,95252.0,95251.0,0.00124738]
[1763257025202,0.3424629,95252.0,95251.0,0.00024738]
[1763257025790,0.3424629,95252.0,95251.0,0.02517738]
[1763257025990,0.0194629,95252.0,95251.0,0.04984546]
[1763257026214,0.20996934,95252.0,95251.0,0.02517738]
[1763257026458,0.22943224,95252.0,95251.0,0.00024738]
[1763257026742,0.0194629,95252.0,95251.0,0.00024738]
[1763257027103,0.0194629,95252.0,95251.0,0.00124738]
[1763257027293,0.03855741,95252.0,95251.0,0.00124738]
[1763257027495,0.0194629,95252.0,95251.0,0.00124738]
[1763257027735,0.0194629,95252.0,95251.0,0.02717738]
[1763257027913,0.0194629,95252.0,95251.0,0.02617738]
[1763257028313,0.0194629,95252.0,95251.0,0.00224738]
[1763257028548,0.0194629,95252.0,95251.0,0.02717738]
[1763257028947,0.03856096,95252.0,95251.0,0.02717738]
[1763257029171,0.0194629,95252.0,95251.0,0.02717738]
[1763257029585,0.20996772,95253.0,95251.0,0.02717738]
[1763257029793,0.01952547,95252.0,95251.0,0.02717738]
[1763257029953,0.20996772,95253.0,95251.0,0.02717738]
[1763257030290,0.01952641,95252.0,95251.0,0.00124738]
[1763257030668,0.01952641,95252.0,95251.0,0.00224738]
[1763257031372,0.22949575,95252.0,95251.0,0.00224738]
[1763257031987,0.22949575,95252.0,95251.0,0.00124738]
[1763257032406,0.22949575,95252.0,95251.0,0.00224738]
[1763257033556,0.5715997,95252.0,95251.0,0.00224738]
[1763257034196,0.5715997,95252.0,95251.0,0.00124738]
[1763257034409,0.5715997,95252.0,95251.0,0.00224738]
[1763257034858,0.57160206,95252.0,95251.0,0.00124738]
[1763257035086,0.60315033,95252.0,95251.0,0.00024738]
[1763257035307,0.60315661,95252.0,95251.0,0.00024738]
[1763257035840,0.60315661,95252.0,95251.0,1e-08]
[1763257036005,0.64657535,95252.0,95251.0,1e-08]
[1763257036213,0.68285157,95252.0,95251.0,1e-08]
[1763257037104,0.68385157,95252.0,95251.0,1e-08]
[1763257037920,0.68485157,95252.0,95251.0,1e-08]
[1763257038127,0.53300021,95238.0,95237.0,0.02829812]
[1763257038330,0.57173409,95238.0,95237.0,0.02829812]
[1763257038949,0.57173409,95238.0,95232.0,0.03773083]
[1763257038950,0.53301123,95233.0,95232.0,0.03773083]
[1763257039173,0.57165023,95233.0,95232.0,1e-08]
[1763257041947,0.57192206,95233.0,95232.0,1e-08]
[1763257042153,0.03891083,95233.0,95232.0,1e-08]
[1763257042505,0.01953269,95233.0,95232.0,1e-08]
[1763257042705,0.34253269,95233.0,95232.0,1e-08]
[1763257042911,0.36191083,95233.0,95232.0,1e-08]
[1763257043316,0.01953269,95233.0,95232.0,1e-08]
[1763257043766,9.488e-05,95238.0,95237.0,0.00038491]
[1763257044015,0.01957025,95238.0,95237.0,0.00038491]
[1763257044302,9.488e-05,95238.0,95237.0,0.00038491]
[1763257045578,0.32309488,95238.0,95237.0,0.00038491]
[1763257045800,9.488e-05,95238.0,95237.0,0.00038491]
[1763257046177,9.488e-05,95238.0,95237.0,0.06342579]
[1763257046986,9.488e-05,95238.0,95237.0,0.06442579]
[1763257047188,9.488e-05,95238.0,95237.0,0.06342579]
[1763257047565,9.488e-05,95238.0,95237.0,0.19672366]
[1763257047766,9.488e-05,95238.0,95237.0,0.19572366]
[1763257048510,9.488e-05,95238.0,95237.0,0.04380365]
[1763257048712,0.00109488,95238.0,95237.0,0.13268278]
[1763257049100,9.488e-05,95238.0,95237.0,0.13268278]
[1763257049503,0.00109488,95238.0,95237.0,0.13268278]
[1763257049690,0.00209488,95238.0,95237.0,0.04380365]
[1763257049893,0.00209488,95238.0,95237.0,0.13268278]
[1763257050262,0.00209488,95238.0,95237.0,0.22995443]
[1763257051498,0.00209488,95238.0,95237.0,0.13268278]
[1763257052971,0.20996407,95255.0,95250.0,0.20997349]
[1763257053190,0.33540174,95260.0,95246.0,0.02757]
[1763257053327,0.01049648,95270.0,95259.0,0.02663107]
[1763257053328,0.34589822,95270.0,95259.0,0.02663107]
[1763257053533,0.2099481,95262.0,95260.0,0.02365977]
[1763257053730,0.34589822,95270.0,95260.0,0.04685977]
[1763257053955,0.34589822,95270.0,95260.0,0.0232]
[1763257053956,0.20994842,95262.0,95260.0,0.0232]
[1763257054155,0.20995171,95260.0,95259.0,0.01058107]
[1763257054526,0.20995171,95260.0,95250.0,0.001]
[1763257054527,0.34589822,95270.0,95250.0,0.001]
[1763257054528,0.20997154,95251.0,95250.0,0.001]
[1763257054834,0.20998036,95247.0,95246.0,0.01165555]
[1763257055034,0.20998033,95248.0,95246.0,0.01165555]
[1763257055196,0.20998033,95248.0,95246.0,0.03159007]
[1763257055394,0.20995848,95258.0,95255.0,0.02757]
[1763257055596,0.20995994,95257.0,95255.0,0.02757]
[1763257055797,0.0232,95260.0,95255.0,0.02757]
[1763257055995,0.20995884,95257.0,95255.0,0.02757]
[1763257056511,0.20995884,95257.0,95255.0,0.02857]
[1763257056711,0.20995884,95257.0,95255.0,0.05252479]
[1763257056914,0.20995884,95257.0,95255.0,0.07472479]
[1763257057094,0.33540174,95265.0,95255.0,0.07472479]
[1763257057095,0.323,95262.0,95256.0,0.0232]
[1763257057298,0.323,95269.0,95265.0,0.01605]
[1763257057503,0.323,95269.0,95256.0,0.0232]
[1763257057504,0.03153912,95262.0,95257.0,0.20995832]
[1763257057814,0.323,95263.0,95258.0,0.23462286]
[1763257058020,0.323,95263.0,95260.0,0.20995117]
[1763257058222,0.323,95263.0,95259.0,0.23315391]
[1763257058420,0.24147799,95266.0,95260.0,0.0232]
[1763257058421,0.03153912,95266.0,95260.0,0.0232]
[1763257058675,0.56447783,95266.0,95262.0,0.20994682]
[1763257058875,0.20994069,95265.0,95263.0,0.04898147]
[1763257059063,0.20994289,95264.0,95258.0,0.001]
[1763257059300,0.56447797,95266.0,95264.0,0.0232]
[1763257060217,0.03153912,95266.0,95264.0,0.0232]
[1763257060374,0.03153912,95266.0,95264.0,0.0242]
[1763257060567,0.20994069,95265.0,95264.0,0.0242]
[1763257060775,0.03153912,95266.0,95264.0,0.0242]
[1763257060954,0.20994069,95265.0,95264.0,0.0242]
[1763257061156,0.24147795,95266.0,95264.0,0.0242]
[1763257061378,0.56447795,95266.0,95264.0,0.001]
[1763257061540,0.323,95265.0,95264.0,0.001]
[1763257062557,0.53294069,95265.0,95264.0,0.001]
[1763257062798,0.20996714,95253.0,95252.0,0.01152]
[1763257064009,0.20996714,95253.0,95252.0,0.01252]
[1763257064182,0.20996714,95253.0,95252.0,0.01352]
[1763257064604,0.323,95257.0,95252.0,0.01352]
[1763257064806,0.20996714,95253.0,95252.0,0.01352]
[1763257065485,0.24150958,95253.0,95252.0,0.01252]
[1763257065684,0.24150958,95253.0,95252.0,0.01352]
[1763257065902,0.24150958,95253.0,95252.0,0.01252]
[1763257066065,0.03154244,95253.0,95252.0,0.01152]
[1763257066266,0.03154244,95253.0,95252.0,0.01252]
[1763257066476,0.03154244,95253.0,95252.0,0.29022001]
[1763257066677,0.03154244,95253.0,95252.0,0.08025067]
[1763257066909,0.24150958,95253.0,95252.0,0.01252]
[1763257067306,0.03154244,95253.0,95252.0,0.01352]
[1763257067507,0.03154244,95253.0,95252.0,0.03672]
[1763257067703,0.24150958,95253.0,95252.0,0.03672]
[1763257068324,0.24150958,95253.0,95252.0,0.01352]
[1763257071603,0.03154244,95253.0,95252.0,0.01352]
[1763257072107,0.03154244,95253.0,95252.0,0.24668934]
[1763257072315,0.03154244,95253.0,95252.0,0.29352126]
[1763257072486,0.24150958,95253.0,95252.0,0.03672]
[1763257073471,0.03154244,95253.0,95252.0,0.24668934]
[1763257073914,0.03154244,95253.0,95252.0,0.03672]
[1763257074117,0.24150958,95253.0,95252.0,0.03672]
[1763257075153,0.26105525,95253.0,95252.0,0.03672]
[1763257075351,0.26105525,95253.0,95252.0,0.01352]
[1763257075761,0.28111113,95253.0,95252.0,0.01352]
[1763257075911,0.26105525,95253.0,95252.0,0.01352]
[1763257076267,0.05108811,95253.0,95252.0,0.01352]
[1763257076424,0.05108811,95253.0,95252.0,0.22348934]
[1763257076628,0.03154244,95253.0,95252.0,0.22348934]
[1763257076826,0.24150958,95253.0,95252.0,0.01352]
[1763257077049,0.07114903,95253.0,95252.0,0.22348934]
[1763257077259,0.05109115,95253.0,95252.0,0.01352]
[1763257078030,0.03154244,95253.0,95252.0,0.20996934]
[1763257078431,0.03154244,95253.0,95252.0,0.2960293]
[1763257078643,0.03154244,95253.0,95249.0,0.01152]
[1763257078844,0.20997375,95250.0,95249.0,0.01152]
[1763257079735,0.20997375,95250.0,95249.0,0.01252]
[1763257079950,0.20996939,95252.0,95249.0,0.01252]
[1763257080159,0.20997375,95250.0,95249.0,0.01252]
[1763257080689,0.20997173,95251.0,95249.0,0.01252]
[1763257080860,0.20996934,95252.0,95249.0,0.01352]
[1763257081058,0.20997375,95250.0,95249.0,0.01152]
[1763257081520,0.20997375,95250.0,95249.0,0.01352]
[1763257082165,0.20997375,95250.0,95249.0,0.01252]
[1763257082369,0.20997375,95250.0,95249.0,0.001]
[1763257082578,0.20997375,95250.0,95249.0,0.002]
[1763257082976,0.20997375,95250.0,95249.0,0.001]
[1763257083941,0.20998036,95247.0,95246.0,0.00013555]
[1763257085030,0.03154244,95253.0,95250.0,0.01163]
[1763257085274,0.22951788,95252.0,95250.0,0.01163]
[1763257085469,0.03960891,95251.0,95250.0,0.01163]
[1763257085652,0.01954831,95251.0,95250.0,0.01163]
[1763257085873,0.20997095,95252.0,95250.0,0.01163]
[1763257086076,0.23003155,95252.0,95251.0,0.0231]
[1763257086277,0.20997095,95252.0,95251.0,0.0231]
[1763257086476,0.24151208,95253.0,95251.0,0.0231]
[1763257087003,0.01954849,95252.0,95251.0,0.0231]
[1763257087190,0.24151208,95253.0,95251.0,0.0231]
[1763257087962,0.20997154,95251.0,95250.0,0.01163]
[1763257088161,0.20998036,95247.0,95246.0,0.00013555]
[1763257089182,0.22150036,95247.0,95246.0,0.00013555]
[1763257089591,0.20998698,95244.0,95243.0,0.00723555]
[1763257089796,0.20998698,95244.0,95242.0,0.00024744]
[1763257090549,0.01152,95247.0,95246.0,0.001]
[1763257090936,0.33452,95247.0,95246.0,0.001]
[1763257091082,0.05068412,95247.0,95242.0,0.00124744]
[1763257091282,0.20998918,95243.0,95242.0,0.00124744]
[1763257091509,0.24915279,95243.0,95242.0,0.00124744]
[1763257092113,0.24915279,95243.0,95242.0,0.00024744]
[1763257092326,0.22953937,95243.0,95242.0,0.00024744]
[1763257092469,0.01955019,95243.0,95242.0,0.00024744]
[1763257092689,0.22953753,95243.0,95242.0,0.02334744]
[1763257092891,0.20998918,95243.0,95242.0,0.02334744]
[1763257093138,0.22953877,95243.0,95242.0,0.00024744]
[1763257093312,0.24915097,95243.0,95242.0,0.00024744]
[1763257093493,0.24915097,95243.0,95242.0,0.00124744]
[1763257093939,0.24915097,95243.0,95242.0,0.00224744]
[1763257094666,0.22953877,95243.0,95242.0,0.00224744]
[1763257095072,0.24914605,95243.0,95242.0,0.00224744]
[1763257095578,0.22953877,95243.0,95242.0,0.00224744]
[1763257095943,0.26108485,95243.0,95242.0,0.00224744]
[1763257096905,0.26108485,95243.0,95242.0,0.02327744]
[1763257097113,0.26108485,95243.0,95242.0,0.00224744]
[1763257097259,0.24153526,95243.0,95242.0,0.00224744]
[1763257097462,0.60368517,95243.0,95242.0,0.00224744]
[1763257098176,0.60368517,95243.0,95242.0,0.00124744]
[1763257098400,0.60368517,95243.0,95242.0,0.00024744]
[1763257102177,0.60368517,95243.0,95242.0,0.00034044]
[1763257105713,0.68324624,95243.0,95242.0,0.00034044]
[1763257105905,0.71879868,95243.0,95242.0,0.00034044]
[1763257106112,0.68324624,95243.0,95242.0,1e-08]
[1763257106681,0.68424624,95243.0,95242.0,1e-08]
[1763257106907,0.68524624,95243.0,95242.0,1e-08]
[1763257107107,0.68424624,95243.0,95242.0,1e-08]
[1763257107231,0.68524624,95243.0,95242.0,1e-08]
[1763257107427,0.72079868,95243.0,95242.0,1e-08]
[1763257107827,0.71979868,95243.0,95242.0,1e-08]
[1763257108145,0.71979868,95243.0,95232.0,1e-08]
[1763257108146,0.57642997,95233.0,95232.0,1e-08]
[1763257108369,0.61557988,95233.0,95232.0,1e-08]
[1763257108577,0.61557988,95233.0,95232.0,0.00027495]
[1763257109649,0.57216114,95233.0,95232.0,0.00027495]
[1763257110371,0.24916114,95233.0,95232.0,0.00027495]
[1763257110777,0.57216114,95233.0,95232.0,0.00027495]
[1763257111105,0.53301123,95233.0,95232.0,0.00027495]
[1763257112078,0.21000939,95234.0,95228.0,0.02158495]
[1763257112281,0.53300653,95236.0,95231.0,0.21001523]
[1763257112430,0.53300653,95236.0,95232.0,0.03001622]
[1763257112431,0.21001178,95233.0,95232.0,0.03001622]
[1763257112634,0.21000249,95237.0,95232.0,0.24002928]
[1763257112947,0.33566337,95250.0,95233.0,0.21001123]
[1763257113172,0.33566337,95250.0,95239.0,0.01641]
[1763257113173,0.53299662,95240.0,95239.0,0.01641]
[1763257113373,0.20999662,95240.0,95239.0,0.01641]
[1763257113811,0.323,95241.0,95239.0,0.01641]
[1763257114050,0.53299455,95241.0,95240.0,0.02259]
[1763257114237,0.20996415,95255.0,95240.0,0.02259]
[1763257114391,0.01944442,95254.0,95241.0,0.20999313]
[1763257114574,0.20998001,95248.0,95241.0,0.20999313]
[1763257114770,0.323,95247.0,95242.0,0.02259]
[1763257115003,0.20997009,95252.0,95242.0,0.03399]
[1763257115202,0.01944306,95251.0,95242.0,0.03399]
[1763257115400,0.20998751,95244.0,95242.0,0.03399]
[1763257115639,0.20998513,95245.0,95242.0,0.03399]
[1763257115847,0.20998854,95244.0,95242.0,0.03399]
[1763257116249,0.20998513,95245.0,95242.0,0.03499]
[1763257116368,0.20998761,95244.0,95242.0,0.03399]
[1763257116774,0.20998761,95244.0,95243.0,0.02259]
[1763257117413,0.03154572,95246.0,95243.0,0.2325786]
[1763257117639,0.20998477,95245.0,95242.0,0.0114]
[1763257117821,0.20998901,95244.0,95242.0,0.0114]
[1763257118036,0.21000903,95234.0,95233.0,0.0114]
[1763257118617,0.22183903,95234.0,95233.0,0.0114]
[1763257120671,0.22183903,95234.0,95220.0,0.02259]
[1763257120672,0.21002005,95229.0,95220.0,0.02259]
[1763257120912,0.21002005,95229.0,95217.0,0.01183]
[1763257121137,0.21002005,95229.0,95218.0,0.02259]
[1763257121922,0.21002005,95229.0,95228.0,0.01153575]
[1763257123030,0.21001835,95230.0,95228.0,0.01153575]
[1763257123232,0.21002005,95229.0,95228.0,0.01153575]
[1763257124656,0.23261005,95229.0,95228.0,0.01253575]
[1763257125331,0.23261005,95229.0,95228.0,0.01153575]
[1763257125505,0.23261005,95229.0,95228.0,0.00013575]
[1763257125710,0.23261005,95229.0,95228.0,0.00113575]
[1763257126072,0.23261005,95229.0,95228.0,0.01253575]
[1763257128952,0.23261005,95229.0,95228.0,0.00113575]
[1763257130655,0.55561005,95229.0,95228.0,0.00113575]
[1763257130856,0.59460131,95229.0,95228.0,0.00013575]
[1763257131043,0.63802005,95229.0,95228.0,0.00013575]
[1763257133913,0.63802005,95229.0,95228.0,1e-08]
[1763257134929,0.64002005,95229.0,95228.0,1e-08]
[1763257138262,0.63999007,95229.0,95228.0,1e-08]
[1763257140962,0.69204595,95229.0,95228.0,1e-08]
[1763257141158,0.63999007,95229.0,95228.0,1e-08]
[1763257141829,0.67554183,95229.0,95228.0,1e-08]
[1763257142009,0.57644982,95224.0,95223.0,1e-08]
[1763257142213,0.61549652,95224.0,95223.0,1e-08]
[1763257142665,0.62689652,95224.0,95223.0,1e-08]
[1763257143579,0.62789652,95224.0,95223.0,1e-08]
[1763257156429,0.58447778,95224.0,95223.0,1e-08]
[1763257158632,0.26147778,95224.0,95223.0,1e-08]
[1763257158833,0.25007778,95224.0,95223.0,1e-08]
[1763257159987,0.24907778,95224.0,95223.0,1e-08]
[1763257162849,0.61549652,95224.0,95223.0,1e-08]
[1763257165310,0.61554541,95224.0,95223.0,1e-08]
[1763257166118,0.57212667,95224.0,95223.0,1e-08]
[1763257169701,0.61554541,95224.0,95223.0,1e-08]
[1763257173347,0.61654541,95224.0,95223.0,1e-08]
[1763257175539,0.21011272,95187.0,95186.0,9e-05]
[1763257176351,0.53311272,95187.0,95186.0,9e-05]
[1763257176550,0.61571273,95187.0,95186.0,9e-05]
[1763257176752,0.61571273,95187.0,95186.0,0.00153905]
[1763257178240,0.61671273,95187.0,95186.0,0.00153905]
[1763257178566,0.61671273,95187.0,95186.0,0.00053905]
[1763257178768,0.61671273,95187.0,95186.0,0.00153905]
[1763257179176,0.61671273,95187.0,95186.0,0.00053905]
[1763257179505,0.61771273,95187.0,95186.0,0.00053905]
[1763257180118,0.62320397,95187.0,95186.0,0.00053905]
[1763257180541,0.62172862,95187.0,95186.0,0.00053905]
[1763257180745,0.41309125,95187.0,95186.0,0.00053905]
[1763257180965,0.39358238,95187.0,95186.0,0.00053905]
[1763257181118,0.0216724,95187.0,95186.0,0.00053905]
[1763257181325,0.002,95187.0,95186.0,0.00155694]
[1763257181547,0.325,95187.0,95186.0,0.00155694]
[1763257181746,0.36741874,95187.0,95186.0,0.00155694]
[1763257181947,0.36641874,95187.0,95186.0,0.00155694]
[1763257184493,0.21559174,95193.0,95186.0,0.00155694]
[1763257184494,0.33607515,95200.0,95189.0,0.21010724]
[1763257184705,0.21009775,95194.0,95190.0,0.06549916]
[1763257184859,0.03156484,95197.0,95188.0,0.0231]
[1763257185059,0.03156484,95197.0,95186.0,0.00053905]
[1763257185060,0.21010831,95189.0,95186.0,0.00053905]
[1763257185405,0.21011272,95187.0,95186.0,0.00053905]
[1763257185931,0.323,95191.0,95186.0,0.00053905]
[1763257186663,0.2101061,95190.0,95186.0,0.21065315]
[1763257186865,0.323,95191.0,95186.0,0.02395437]
[1763257187121,0.03156484,95197.0,95187.0,0.0231]
[1763257187275,0.03156484,95197.0,95188.0,0.21011003]
[1763257187495,0.323,95192.0,95187.0,0.23321105]
[1763257187691,0.323,95192.0,95188.0,0.0231]
[1763257188282,0.21010663,95190.0,95188.0,0.0231]
[1763257188858,0.21011051,95188.0,95187.0,0.001]
[1763257188996,0.21011051,95188.0,95186.0,0.00053905]
[1763257190824,0.21011051,95188.0,95187.0,0.001]
[1763257191279,0.21011051,95188.0,95187.0,0.00099037]
[1763257191451,0.57652925,95188.0,95187.0,0.00099037]
[1763257192065,0.57652925,95188.0,95187.0,0.00199037]
[1763257192866,0.57652925,95188.0,95187.0,0.00099037]
[1763257193411,0.5959859,95188.0,95187.0,0.00099037]
[1763257193618,0.61543293,95188.0,95187.0,0.00099037]
[1763257194710,0.61643293,95188.0,95187.0,0.00099037]
[1763257195097,0.61743293,95188.0,95187.0,0.00099037]
[1763257202979,0.61643293,95188.0,95187.0,0.00099037]
[1763257203404,0.24901419,95188.0,95187.0,0.00099037]
[1763257203603,0.57201419,95188.0,95187.0,0.00099037]
[1763257204222,0.61543293,95188.0,95187.0,0.00099037]
[1763257212710,0.6196425,95188.0,95187.0,0.00099037]
[1763257219720,0.6196425,95188.0,95180.0,0.0004]
[1763257219721,0.57654471,95181.0,95180.0,0.0004]
[1763257219930,0.57654471,95181.0,95131.0,0.05659625]
[1763257219931,0.04341874,95170.0,95130.0,0.0004]
[1763257220229,0.04341874,95170.0,95110.0,0.10432708]
[1763257220231,0.04341874,95129.0,95111.0,9.74814971]
[1763257220429,0.57669714,95112.0,95111.0,9.47026556]
[1763257220552,0.61560082,95112.0,95111.0,8.79624318]
[1763257220754,0.61560082,95112.0,95111.0,8.70091387]
[1763257220755,0.79570223,95112.0,95111.0,8.70091387]
[1763257220984,0.79570223,95112.0,95111.0,8.29335465]
[1763257221199,0.94301707,95112.0,95111.0,6.3093406]
[1763257221457,0.79698421,95112.0,95111.0,4.25776625]
[1763257221642,0.79698421,95112.0,95111.0,2.61405276]
[1763257221643,1.22519279,95112.0,95111.0,2.61405276]
[1763257221844,0.76021297,95112.0,95111.0,0.14544186]
[1763257222066,0.76021297,95112.0,95111.0,0.09711861]
[1763257222067,0.77975166,95112.0,95111.0,0.09711861]
[1763257222262,0.77975166,95112.0,95100.0,0.01250069]
[1763257222263,0.57672147,95101.0,95100.0,0.00854854]
[1763257222479,0.57672147,95101.0,95041.0,0.01203]
[1763257222480,0.62534989,95101.0,95041.0,0.01203]
[1763257222681,0.62534989,95101.0,95000.0,31.0665264]
[1763257222682,0.62534989,95101.0,95000.0,34.06624404]
[1763257222683,0.01052299,95030.0,95000.0,34.06624404]
[1763257222880,0.02052187,95040.0,95000.0,34.06624404]
[1763257222881,0.33607515,95010.0,95000.0,34.06624404]
[1763257223050,0.33607515,95010.0,95009.0,0.21050637]
[1763257223252,0.33607515,95019.0,95010.0,0.21050415]
[1763257223454,0.01924503,95018.0,95009.0,0.01534]
[1763257223656,0.33607515,95030.0,95000.0,34.06624404]
[1763257223657,0.04341874,95001.0,95000.0,34.06624404]
[1763257223834,0.06311159,95001.0,95000.0,34.06624404]
[1763257224047,0.01969285,95001.0,95000.0,34.06624404]
[1763257224254,0.0004506,95001.0,95000.0,34.06624404]
[1763257224728,0.33607515,95020.0,95000.0,34.06624404]
[1763257224945,0.01919817,95019.0,95009.0,0.001]
[1763257225161,0.21050246,95011.0,95009.0,0.001]
[1763257225409,0.35527332,95019.0,95000.0,34.06633892]
[1763257225410,0.01919817,95010.0,95000.0,34.06633892]
[1763257225627,0.01919817,95009.0,95000.0,34.06633892]
[1763257225832,0.01919817,95008.0,95001.0,0.02471]
[1763257226048,0.08887913,95018.0,95017.0,0.01203]
[1763257226268,0.21050194,95011.0,95010.0,0.01534]
[1763257226486,0.21050194,95011.0,95000.0,34.06633892]
[1763257226487,0.21052409,95001.0,95000.0,34.06633892]
[1763257226696,0.33607515,95011.0,95000.0,34.06633892]
[1763257226914,0.21052001,95003.0,95000.0,34.06633892]
[1763257227133,0.04341874,95006.0,95000.0,34.06633892]
[1763257227360,0.08887913,95018.0,95010.0,0.02737]
[1763257227590,0.33607515,95050.0,95017.0,0.01534]
[1763257227838,0.33607515,95060.0,95049.0,0.02737]
[1763257228061,0.21040007,95057.0,95049.0,0.02737]
[1763257228278,0.2104069,95054.0,95049.0,0.02737]
[1763257228493,0.21041127,95052.0,95049.0,0.01203]
[1763257228710,0.21041557,95050.0,95049.0,0.01203]
[1763257228945,0.21039564,95059.0,95058.0,0.01534]
[1763257229160,0.01907714,95059.0,95050.0,0.02471]
[1763257229377,0.229475,95058.0,95050.0,0.02471]
[1763257229629,0.01051856,95070.0,95050.0,0.02471]
[1763257229630,0.01051414,95110.0,95089.0,0.01534]
[1763257229861,0.01169,95126.0,95096.0,0.01534]
[1763257230075,0.01169,95126.0,95090.0,0.00999999]
[1763257230076,0.00953544,95125.0,95123.0,0.01203]
[1763257230296,0.01169,95126.0,95123.0,0.01203]
[1763257230504,0.01169,95126.0,95124.0,0.02471]
[1763257230962,0.01214115,95126.0,95123.0,0.01203]
[1763257231431,0.00045115,95126.0,95123.0,0.01203]
[1763257231889,0.00045115,95126.0,95120.0,0.00999999]
[1763257231890,0.21025851,95121.0,95120.0,0.00999999]
[1763257232117,0.21024967,95125.0,95124.0,0.001]
[1763257232558,0.21024967,95125.0,95120.0,0.00999999]
[1763257232559,0.00045115,95126.0,95120.0,0.00999999]
[1763257232754,0.00045115,95126.0,95124.0,0.001]
[1763257232996,0.21024967,95125.0,95120.0,0.00999999]
[1763257233480,0.08195,95121.0,95093.0,0.06817]
[1763257233701,0.21032137,95093.0,95080.0,0.00999999]
[1763257233922,0.04341874,95119.0,95090.0,0.00999999]
[1763257233923,0.33607515,95092.0,95090.0,0.00999999]
[1763257234125,0.04341874,95103.0,95083.0,0.02873]
[1763257234339,0.33607515,95100.0,95090.0,0.00999999]
[1763257234558,0.21032484,95091.0,95090.0,0.00999999]
[1763257234997,0.21032484,95091.0,95090.0,9.488e-05]
[1763257235905,0.33607515,95100.0,95090.0,9.488e-05]
[1763257236123,0.33607515,95100.0,95090.0,0.00209488]
[1763257236124,0.21031517,95096.0,95090.0,0.00209488]
[1763257236344,0.21032042,95093.0,95090.0,0.00054545]
[1763257236556,0.21032484,95091.0,95090.0,0.00054545]
[1763257236747,0.21032484,95091.0,95090.0,0.00154545]
[1763257236944,0.21032484,95091.0,95090.0,0.00321717]
[1763257237148,0.21032484,95091.0,95090.0,0.00267172]
[1763257238326,0.21032484,95091.0,95090.0,0.00367172]
[1763257238963,0.21032484,95091.0,95090.0,0.00467172]
[1763257239140,0.03608,95129.0,95100.0,0.00990403]
[1763257239305,0.48074397,95120.0,95119.0,0.03396]
[1763257239505,0.22077596,95120.0,95119.0,0.03396]